[Event "FIDE WYCC Girls U14 2023"]
[Site "Montesilvano"]
[Date "2023.11.22"]
[Round "9.6"]
[White "Lyutsinger, Iren"]
[Black "Sachi Jain"]
[Result "1/2-1/2"]
[ECO "C84"]
[WhiteElo "2020"]
[BlackElo "1743"]
[Annotator "NA RC"]
[PlyCount "105"]
[EventDate "2023.11.13"]
[EventType "swiss"]
[EventCountry "ITA"]
[SourceTitle "playchess.com"]
[Source "ChessBase"]
[SourceQuality "1"]
[TimeControl "40/5400+30:1800+30"]

1. e4 {[%emt 0:00:01]} e5 {[%emt 0:00:10]} 2. Nf3 {[%emt 0:01:02]} Nc6 {[%emt 0:00:19]} 3. Bb5 {[%emt 0:00:09]} a6 {[%emt 0:00:16]} 4. Ba4 {[%emt 0:00:12]} Nf6 {[%emt 0:00:06]} 5. O-O {[%emt 0:00:07]} Be7 {[%emt 0:00:10]} 6. d3 {[%emt 0:00:27]} b5 {[%emt 0:00:13]} 7. Bb3 {[%emt 0:00:09]} d6 {[%emt 0:00:07]} 8. a3 {[%emt 0:00:06]} O-O {[%emt 0:00:56]} 9. Nc3 {[%emt 0:00:24]} Na5 {[%emt 0:02:53]} 10. Ba2 {[%emt 0:00:12]} c5 {[%emt 0:00:26]} 11. Nd5 {[%emt 0:00:36]} Nxd5 {[%emt 0:03:41]} 12. Bxd5 {[%emt 0:02:00]} Bb7 {[%emt 0:01:23]} 13. b4 {[%emt 0:07:43]} Bxd5 {[%emt 0:05:05]} 14. exd5 {[%emt 0:00:23]} Nb7 {[%emt 0:02:14]} 15. Bb2 {[%emt 0:14:10]} Qc7 {[%emt 0:11:52]} 16. Qe2 {[%emt 0:05:30]} Rfc8 {[%emt 0:07:27]} 17. Rfc1 {[%emt 0:01:39]} a5 {[%emt 0:05:50]} 18. bxc5 {[%emt 0:13:17]} Nxc5 {[%emt 0:03:50]} 19. Rab1 {[%emt 0:02:18]} Bf6 {[%emt 0:20:23]} 20. Nd2 {[%emt 0:06:06]} Bg5 {[%emt 0:10:23]} 21. d4 {[%emt 0:04:12]} Nd7 {[%emt 0:01:58]} 22. a4 {[%emt 0:06:46]} Bxd2 {[%emt 0:09:20]} 23. Qxd2 {[%emt 0:00:19]} Qc4 {[%emt 0:00:33]} 24. dxe5 {[%emt 0:07:16]} dxe5 {[%emt 0:00:33]} 25. axb5 {[%emt 0:04:31]} Rc5 {[%emt 0:00:06]} 26. Ba3 {[%emt 0:09:52]} Rxd5 {[%emt 0:00:47]} 27. Qe3 {[%emt 0:00:16]} Rxb5 {[%emt 0:01:41]} 28. Rxb5 {[%emt 0:00:30]} Qxb5 {[%emt 0:00:01]} 29. c4 {[%emt 0:00:00]} Qb7 {[%emt 0:03:34]} 30. h3 {[%emt 0:01:56]} h6 {[%emt 0:00:46]} 31. c5 {[%emt 0:00:53]} Rc8 {[%emt 0:00:20]} 32. Qc3 {[%emt 0:00:28]} Qc7 {[%emt 0:01:17]} 33. Rd1 {[%emt 0:02:12]} Nb8 {[%emt 0:02:34]} 34. Qe3 {[%emt 0:06:39]} Nc6 {[%emt 0:01:07]} 35. Bb2 {[%emt 0:01:04]} Nd4 {[%emt 0:01:18]} 36. Rc1 {[%emt 0:01:28]} Rd8 {[%emt 0:00:39]} 37. Rc4 {[%emt 0:01:44]} Rd5 {[%emt 0:02:36]} 38. Bxd4 {[%emt 0:00:27]} Rxd4 {[%emt 0:00:01]} 39. Rxd4 {[%emt 0:00:42]} exd4 {[%emt 0:00:01]} 40. Qxd4 {[%emt 0:00:00]} a4 {[%emt 0:00:00]} 41. Qb4 {[%emt 0:02:16]} Kh7 {[%emt 0:01:34]} 42. Kf1 {[%emt 0:01:49]} Qe5 {[%emt 0:01:02]} 43. Qb1+ {[%emt 0:05:32]} g6 {[%emt 0:05:50]} 44. Qc1 {[%emt 0:00:33]} Qd4 {[%emt 0:03:07]} 45. Kg1 {[%emt 0:02:05]} Qd7 {[%emt 0:03:42]} 46. Qc3 {[%emt 0:07:07]} Qa7 {[%emt 0:01:04]} 47. Qa3 {[%emt 0:00:38]} Qa6 {[%emt 0:00:31]} 48. Qa2 {[%emt 0:02:27]} Kg8 {[%emt 0:00:32]} 49. Kh2 {[%emt 0:00:57]} Qb5 {[%emt 0:01:08]} 50. Qc2 {[%emt 0:01:11]} a3 {[%emt 0:00:12]} 51. c6 {[%emt 0:00:23]} a2 {[%emt 0:00:06]} 52. c7 {[%emt 0:01:15]} Qe5+ {[%emt 0:00:26]} 53. g3 {[%emt 0:00:16]} 1/2-1/2

[Event "FIDE WYCC Girls U14 2023"]
[Site "Montesilvano"]
[Date "2023.11.22"]
[Round "9.7"]
[White "Jiang, Tianyu"]
[Black "Agamyradova, Mahri"]
[Result "1-0"]
[ECO "C15"]
[WhiteElo "1917"]
[BlackElo "1652"]
[Annotator "NA RC"]
[PlyCount "61"]
[EventDate "2023.11.13"]
[EventType "swiss"]
[EventCountry "ITA"]
[SourceTitle "playchess.com"]
[Source "ChessBase"]
[SourceQuality "1"]
[TimeControl "40/5400+30:1800+30"]

1. e4 {[%emt 0:00:03]} e6 {[%emt 0:00:03]} 2. d4 {[%emt 0:00:04]} d5 {[%emt 0:00:03]} 3. Nc3 {[%emt 0:00:05]} Bb4 {[%emt 0:05:40]} 4. Nge2 {[%emt 0:03:36]} dxe4 {[%emt 0:04:00]} 5. a3 {[%emt 0:00:05]} Bxc3+ {[%emt 0:01:01]} 6. Nxc3 {[%emt 0:00:04]} Nf6 {[%emt 0:00:08]} 7. Bg5 {[%emt 0:00:46]} h6 {[%emt 0:08:18]} 8. Bh4 {[%emt 0:01:08]} Nc6 {[%emt 0:32:46]} 9. Bb5 {[%emt 0:03:11]} Bd7 {[%emt 0:00:19]} 10. d5 {[%emt 0:20:38]} exd5 {[%emt 0:31:31]} 11. Nxd5 {[%emt 0:00:15]} g5 {[%emt 0:00:13]} 12. Bg3 {[%emt 0:00:37]} Nxd5 {[%emt 0:00:10]} 13. Qxd5 {[%emt 0:00:05]} Qe7 {[%emt 0:00:33]} 14. Bxc7 {[%emt 0:01:07]} a6 {[%emt 0:01:28]} 15. Ba4 {[%emt 0:01:22]} Rc8 {[%emt 0:03:44]} 16. Bd6 {[%emt 0:05:54]} Qe6 {[%emt 0:01:47]} 17. Qd2 {[%emt 0:01:09]} Qc4 {[%emt 0:01:44]} 18. Bb4 {[%emt 0:14:11]} b5 {[%emt 0:01:32]} 19. Bc3 {[%emt 0:03:07]} Rh7 {[%emt 0:04:17]} 20. Bb3 {[%emt 0:01:14]} Qc5 {[%emt 0:00:01]} 21. h4 {[%emt 0:01:48]} g4 {[%emt 0:00:36]} 22. O-O-O {[%emt 0:01:02]} Nb8 23. Rhe1 {[%emt 0:00:37]} f5 {[%emt 0:01:34]} 24. f3 {[%emt 0:03:38]} Bc6 {[%emt 0:00:30]} 25. fxg4 {[%emt 0:00:22]} Rd7 {[%emt 0:00:24]} 26. Qxh6 {[%emt 0:00:22]} Rxd1+ {[%emt 0:00:14]} 27. Rxd1 {[%emt 0:00:07]} Nd7 {[%emt 0:00:04]} 28. Qg6+ {[%emt 0:01:03]} Kd8 {[%emt 0:00:13]} 29. Ba5+ {[%emt 0:00:18]} Rc7 {[%emt 0:00:17]} 30. Qg8+ {[%emt 0:00:11]} Qf8 {[%emt 0:00:05]} 31. Qxf8# {[%emt 0:00:08]} 1-0

[Event "FIDE WYCC Girls U14 2023"]
[Site "Montesilvano"]
[Date "2023.11.22"]
[Round "9.8"]
[White "Suyamin, Bonjoure Fille"]
[Black "Huseynova, Lala"]
[Result "0-1"]
[ECO "D37"]
[WhiteElo "1570"]
[BlackElo "1867"]
[Annotator "NA RC"]
[PlyCount "78"]
[EventDate "2023.11.13"]
[EventType "swiss"]
[EventCountry "ITA"]
[SourceTitle "playchess.com"]
[Source "ChessBase"]
[SourceQuality "1"]
[TimeControl "40/5400+30:1800+30"]

1. d4 {[%emt 0:00:04]} d5 {[%emt 0:00:28]} 2. Nf3 {[%emt 0:00:13]} Nf6 {[%emt 0:00:05]} 3. c4 {[%emt 0:00:15]} e6 {[%emt 0:00:10]} 4. Nc3 {[%emt 0:00:08]} Be7 {[%emt 0:00:04]} 5. Bf4 {[%emt 0:00:12]} b6 {[%emt 0:04:33]} 6. e3 {[%emt 0:02:28]} Bb7 {[%emt 0:00:44]} 7. Bd3 {[%emt 0:00:22]} O-O {[%emt 0:09:19]} 8. O-O {[%emt 0:00:25]} dxc4 {[%emt 0:02:18]} 9. Bxc4 {[%emt 0:00:22]} Nc6 {[%emt 0:11:27]} 10. Qe2 {[%emt 0:03:47]} Bd6 {[%emt 0:10:50]} 11. Bg5 {[%emt 0:13:03]} Na5 {[%emt 0:11:26]} 12. Bd3 {[%emt 0:05:07]} c5 {[%emt 0:00:59]} 13. Rfd1 {[%emt 0:02:37]} cxd4 {[%emt 0:04:25]} 14. Nxd4 {[%emt 0:02:33]} h6 {[%emt 0:03:13]} 15. Ndb5 {[%emt 0:05:05]} hxg5 {[%emt 0:09:59]} 16. Nxd6 {[%emt 0:00:17]} Qe7 {[%emt 0:04:00]} 17. Nxb7 {[%emt 0:02:01]} Nxb7 {[%emt 0:01:51]} 18. Rac1 {[%emt 0:05:43]} Nc5 {[%emt 0:01:48]} 19. Bc2 {[%emt 0:04:28]} Rac8 {[%emt 0:01:26]} 20. a3 {[%emt 0:10:52]} Nb7 {[%emt 0:06:10]} 21. Nb5 {[%emt 0:01:37]} a6 {[%emt 0:01:29]} 22. Nd4 {[%emt 0:02:05]} b5 {[%emt 0:04:10]} 23. a4 {[%emt 0:04:21]} bxa4 {[%emt 0:02:40]} 24. Bxa4 {[%emt 0:01:15]} Rxc1 {[%emt 0:02:46]} 25. Rxc1 {[%emt 0:00:05]} Qb4 {[%emt 0:00:46]} 26. Rc4 {[%emt 0:02:56]} Qd6 {[%emt 0:00:56]} 27. Bc2 {[%emt 0:06:11]} a5 {[%emt 0:02:04]} 28. Qf3 {[%emt 0:02:24]} Nc5 {[%emt 0:00:35]} 29. Nc6 {[%emt 0:11:02]} g4 {[%emt 0:01:21]} 30. Qf4 {[%emt 0:10:12]} Qxc6 {[%emt 0:00:12]} 31. e4 {[%emt 0:01:27]} e5 {[%emt 0:01:42]} 32. Qxe5 {[%emt 0:00:39]} Ncd7 {[%emt 0:00:50]} 33. Qc3 {[%emt 0:00:33]} Qe6 {[%emt 0:00:51]} 34. Rd4 {[%emt 0:01:37]} Ne5 {[%emt 0:00:50]} 35. Qxa5 {[%emt 0:00:50]} Nc6 {[%emt 0:00:23]} 36. Qd2 {[%emt 0:00:34]} Nxd4 {[%emt 0:00:05]} 37. Qxd4 {[%emt 0:00:07]} Rc8 {[%emt 0:00:15]} 38. Bd3 {[%emt 0:00:45]} Rc1+ {[%emt 0:00:10]} 39. Bf1 {[%emt 0:00:05]} Qa6 {[%emt 0:00:25]} 0-1

[Event "FIDE WYCC Girls U14 2023"]
[Site "Montesilvano"]
[Date "2023.11.22"]
[Round "9.9"]
[White "Smietanska, Wiktoria"]
[Black "Mkrtchyan, Anahit H."]
[Result "1-0"]
[ECO "A40"]
[WhiteElo "2009"]
[BlackElo "1630"]
[Annotator "NA RC"]
[PlyCount "101"]
[EventDate "2023.11.13"]
[EventType "swiss"]
[EventCountry "ITA"]
[SourceTitle "playchess.com"]
[Source "ChessBase"]
[SourceQuality "1"]
[TimeControl "40/5400+30:1800+30"]

1. d4 {[%emt 0:00:02]} Nf6 {[%emt 0:00:07]} 2. c4 {[%emt 0:00:13]} e6 {[%emt 0:00:03]} 3. g3 {[%emt 0:00:13]} d5 {[%emt 0:01:08]} 4. Nf3 {[%emt 0:00:47]} b6 {[%emt 0:04:26]} 5. Bg2 {[%emt 0:02:27]} Bb7 {[%emt 0:00:18]} 6. O-O {[%emt 0:03:03]} Nbd7 {[%emt 0:01:37]} 7. cxd5 {[%emt 0:03:39]} exd5 {[%emt 0:03:44]} 8. Nc3 {[%emt 0:02:11]} Be7 {[%emt 0:00:48]} 9. Bf4 {[%emt 0:04:36]} O-O {[%emt 0:02:27]} 10. Rc1 {[%emt 0:04:03]} c5 {[%emt 0:01:12]} 11. Ne5 {[%emt 0:07:01]} Rc8 {[%emt 0:07:39]} 12. dxc5 {[%emt 0:05:35]} bxc5 {[%emt 0:01:14]} 13. Qa4 {[%emt 0:06:31]} Nxe5 {[%emt 0:02:17]} 14. Bxe5 {[%emt 0:00:13]} Bc6 {[%emt 0:00:28]} 15. Qc2 {[%emt 0:03:41]} d4 {[%emt 0:04:30]} 16. Bxc6 {[%emt 0:03:16]} Rxc6 {[%emt 0:01:59]} 17. Nb5 {[%emt 0:09:01]} Ng4 {[%emt 0:06:27]} 18. Bf4 {[%emt 0:05:20]} g5 {[%emt 0:05:55]} 19. Bd2 {[%emt 0:05:51]} Rh6 {[%emt 0:03:32]} 20. h4 {[%emt 0:02:52]} Qd5 {[%emt 0:12:38]} 21. Qd3 {[%emt 0:07:01]} Ne5 {[%emt 0:08:21]} 22. Qf5 {[%emt 0:02:16]} Rf6 {[%emt 0:05:29]} 23. Qxg5+ {[%emt 0:01:57]} Kh8 {[%emt 0:00:05]} 24. Bf4 {[%emt 0:05:08]} Re6 {[%emt 0:01:41]} 25. Qh5 {[%emt 0:01:06]} Bd8 {[%emt 0:07:58]} 26. Bxe5+ {[%emt 0:09:11]} Rxe5 {[%emt 0:00:09]} 27. Qh6 {[%emt 0:00:28]} Rg8 {[%emt 0:01:36]} 28. Qd6 {[%emt 0:06:06]} Qe4 {[%emt 0:02:46]} 29. Rxc5 {[%emt 0:00:28]} Rxc5 {[%emt 0:00:36]} 30. Qxc5 {[%emt 0:00:02]} Bb6 {[%emt 0:00:06]} 31. Qh5 {[%emt 0:01:07]} d3 {[%emt 0:00:22]} 32. e3 {[%emt 0:00:29]} Bxe3 {[%emt 0:00:14]} 33. Kh2 {[%emt 0:00:27]} Bb6 {[%emt 0:01:58]} 34. Nc3 {[%emt 0:00:26]} Qe6 {[%emt 0:00:53]} 35. Qf3 {[%emt 0:00:24]} Qg6 {[%emt 0:02:53]} 36. Rd1 {[%emt 0:00:39]} Rd8 {[%emt 0:00:21]} 37. h5 {[%emt 0:00:29]} Qd6 {[%emt 0:00:24]} 38. Ne4 {[%emt 0:00:32]} Qd5 {[%emt 0:00:59]} 39. Qf6+ {[%emt 0:00:36]} Kg8 {[%emt 0:00:01]} 40. h6 {[%emt 0:00:00]} Qh5+ {[%emt 0:00:00]} 41. Kg2 {[%emt 0:00:43]} Qg6 {[%emt 0:05:29]} 42. Kf3 {[%emt 0:09:06]} Qxf6+ {[%emt 0:07:01]} 43. Nxf6+ {[%emt 0:00:10]} Kh8 {[%emt 0:00:02]} 44. b4 {[%emt 0:02:10]} a5 {[%emt 0:04:07]} 45. a3 {[%emt 0:05:45]} axb4 {[%emt 0:01:37]} 46. axb4 {[%emt 0:00:05]} Bd4 {[%emt 0:00:47]} 47. Ne4 {[%emt 0:01:37]} Rb8 {[%emt 0:01:46]} 48. Rxd3 {[%emt 0:01:51]} Rxb4 {[%emt 0:00:12]} 49. Ra3 {[%emt 0:02:15]} Rb8 {[%emt 0:00:26]} 50. Ra4 {[%emt 0:01:32]} Rd8 {[%emt 0:02:28]} 51. Nd6 {[%emt 0:00:56]} 1-0

[Event "FIDE WYCC Girls U14 2023"]
[Site "Montesilvano"]
[Date "2023.11.22"]
[Round "9.10"]
[White "Derlich, Sarah Sima"]
[Black "Dicen, Elis Denele"]
[Result "1-0"]
[ECO "B52"]
[WhiteElo "1745"]
[BlackElo "1976"]
[Annotator "RC"]
[PlyCount "145"]
[EventDate "2023.11.13"]
[EventType "swiss"]
[EventCountry "ITA"]
[SourceTitle "playchess.com"]
[Source "ChessBase"]
[SourceQuality "1"]
[TimeControl "40/5400+30:1800+30"]

1. e4 {[%emt 0:00:02]} c5 {[%emt 0:00:06]} 2. Nf3 {[%emt 0:00:08]} d6 {[%emt 0:00:06]} 3. Bb5+ {[%emt 0:00:06]} Bd7 {[%emt 0:00:07]} 4. Bxd7+ {[%emt 0:00:08]} Qxd7 {[%emt 0:00:12]} 5. c4 {[%emt 0:00:06]} Nf6 {[%emt 0:00:16]} 6. Nc3 {[%emt 0:00:11]} g6 {[%emt 0:00:34]} 7. d3 {[%emt 0:02:57]} Bg7 {[%emt 0:00:40]} 8. O-O {[%emt 0:00:19]} O-O {[%emt 0:01:02]} 9. a3 {[%emt 0:00:15]} Nc6 {[%emt 0:04:43]} 10. Rb1 {[%emt 0:00:08]} e6 {[%emt 0:04:06]} 11. b4 {[%emt 0:09:32]} b6 {[%emt 0:04:31]} 12. bxc5 {[%emt 0:13:23]} dxc5 {[%emt 0:02:48]} 13. Qc2 {[%emt 0:01:39]} Rfd8 {[%emt 0:02:30]} 14. Rd1 {[%emt 0:00:57]} Ng4 {[%emt 0:02:39]} 15. Bg5 {[%emt 0:04:57]} Re8 {[%emt 0:03:15]} 16. h3 {[%emt 0:08:19]} Nge5 {[%emt 0:00:39]} 17. Nxe5 {[%emt 0:02:58]} Nxe5 {[%emt 0:00:38]} 18. Bf4 {[%emt 0:02:27]} Rad8 {[%emt 0:09:18]} 19. Bxe5 {[%emt 0:03:01]} Bxe5 {[%emt 0:00:15]} 20. Ne2 {[%emt 0:00:21]} Qd6 {[%emt 0:03:54]} 21. a4 {[%emt 0:03:36]} Rd7 {[%emt 0:04:08]} 22. Qd2 {[%emt 0:03:48]} Red8 {[%emt 0:03:05]} 23. Rb3 {[%emt 0:00:41]} Qc6 {[%emt 0:02:14]} 24. a5 {[%emt 0:12:22]} Qxe4 {[%emt 0:10:21]} 25. Qc2 {[%emt 0:02:08]} Bc7 {[%emt 0:04:50]} 26. a6 {[%emt 0:06:41]} Qe5 {[%emt 0:01:42]} 27. Ng3 {[%emt 0:02:33]} h5 {[%emt 0:03:33]} 28. Qe2 {[%emt 0:04:06]} Qf4 {[%emt 0:04:24]} 29. Qe4 {[%emt 0:01:14]} Qxe4 {[%emt 0:00:40]} 30. Nxe4 {[%emt 0:00:06]} Kg7 {[%emt 0:00:49]} 31. Kf1 {[%emt 0:00:32]} f5 {[%emt 0:03:22]} 32. Ng5 {[%emt 0:00:27]} Kf6 {[%emt 0:00:49]} 33. Nf3 {[%emt 0:02:01]} g5 {[%emt 0:01:22]} 34. Ne1 {[%emt 0:02:50]} g4 {[%emt 0:04:29]} 35. hxg4 {[%emt 0:02:03]} hxg4 {[%emt 0:00:17]} 36. Nc2 {[%emt 0:00:35]} Rh8 {[%emt 0:02:02]} 37. Na3 {[%emt 0:03:48]} f4 {[%emt 0:01:22]} 38. Ke2 {[%emt 0:00:27]} Be5 {[%emt 0:01:09]} 39. Nb1 {[%emt 0:02:20]} Rh2 {[%emt 0:03:25]} 40. Rg1 {[%emt 0:00:00]} Bd4 {[%emt 0:00:00]} 41. Nd2 {[%emt 0:07:59]} Rdh7 {[%emt 0:15:33]} 42. Ne4+ {[%emt 0:04:52]} Ke5 {[%emt 0:01:13]} 43. Rbb1 {[%emt 0:06:22]} R7h5 {[%emt 0:07:27]} 44. Rbe1 {[%emt 0:03:01]} g3 {[%emt 0:03:19]} 45. Kf3 {[%emt 0:02:58]} gxf2 {[%emt 0:01:32]} 46. Nxf2+ {[%emt 0:01:44]} Kf5 {[%emt 0:01:21]} 47. Rgf1 {[%emt 0:02:29]} Rg5 {[%emt 0:03:45]} 48. Ne4 {[%emt 0:06:04]} Rgxg2 {[%emt 0:01:37]} 49. Nd6+ {[%emt 0:01:35]} Kf6 {[%emt 0:03:02]} 50. Kxf4 {[%emt 0:02:14]} e5+ {[%emt 0:01:29]} 51. Ke4+ {[%emt 0:01:50]} Ke6 {[%emt 0:00:40]} 52. Nb5 {[%emt 0:00:31]} Rg3 {[%emt 0:00:54]} 53. Nc7+ {[%emt 0:00:32]} Ke7 {[%emt 0:02:29]} 54. Kd5 {[%emt 0:00:28]} Rh6 {[%emt 0:01:59]} 55. Nb5 {[%emt 0:00:33]} Rxd3 {[%emt 0:01:02]} 56. Rd1 {[%emt 0:00:07]} Re3 {[%emt 0:00:42]} 57. Rg1 {[%emt 0:00:22]} Rf6 {[%emt 0:01:20]} 58. Rg7+ {[%emt 0:00:31]} Rf7 {[%emt 0:00:19]} 59. Rxf7+ {[%emt 0:00:21]} Kxf7 {[%emt 0:00:07]} 60. Rf1+ {[%emt 0:00:17]} Ke7 {[%emt 0:00:17]} 61. Nxa7 {[%emt 0:00:27]} Ra3 {[%emt 0:00:44]} 62. Nc6+ {[%emt 0:00:05]} Kd7 {[%emt 0:00:15]} 63. a7 {[%emt 0:00:50]} e4 {[%emt 0:00:57]} 64. Rf7+ {[%emt 0:00:19]} Kc8 {[%emt 0:00:55]} 65. Rf8+ {[%emt 0:00:37]} Kb7 {[%emt 0:01:11]} 66. Rb8+ {[%emt 0:00:16]} Kc7 {[%emt 0:00:07]} 67. a8=Q {[%emt 0:00:28]} Rxa8 {[%emt 0:00:13]} 68. Rxa8 {[%emt 0:00:02]} Bc3 {[%emt 0:00:31]} 69. Ra7+ {[%emt 0:00:20]} Kc8 {[%emt 0:00:09]} 70. Kxe4 {[%emt 0:00:19]} b5 {[%emt 0:00:20]} 71. cxb5 {[%emt 0:00:11]} c4 {[%emt 0:00:09]} 72. b6 {[%emt 0:00:10]} Bb4 {[%emt 0:00:04]} 73. Rc7# 1-0

[Event "FIDE WYCC Girls U14 2023"]
[Site "Montesilvano"]
[Date "2023.11.22"]
[Round "9.11"]
[White "Nguyen, Thuy Linh"]
[Black "Negre, Emilie"]
[Result "1-0"]
[ECO "D37"]
[WhiteElo "1398"]
[BlackElo "1871"]
[Annotator "NA RC"]
[PlyCount "101"]
[EventDate "2023.11.13"]
[EventType "swiss"]
[EventCountry "ITA"]
[SourceTitle "playchess.com"]
[Source "ChessBase"]
[SourceQuality "1"]
[TimeControl "40/5400+30:1800+30"]

1. d4 {[%emt 0:00:03]} Nf6 {[%emt 0:00:06]} 2. Nf3 {[%emt 0:00:11]} e6 {[%emt 0:00:05]} 3. c4 {[%emt 0:00:10]} d5 {[%emt 0:00:05]} 4. Nc3 {[%emt 0:00:44]} Be7 {[%emt 0:01:06]} 5. g3 {[%emt 0:00:49]} O-O {[%emt 0:00:29]} 6. Bg2 {[%emt 0:00:11]} dxc4 {[%emt 0:02:30]} 7. Qa4 {[%emt 0:04:01]} a6 {[%emt 0:01:42]} 8. Qxc4 {[%emt 0:01:04]} b5 {[%emt 0:02:35]} 9. Qb3 {[%emt 0:01:34]} Bb7 {[%emt 0:01:10]} 10. O-O {[%emt 0:03:51]} c5 {[%emt 0:03:40]} 11. Rd1 {[%emt 0:01:47]} Nbd7 {[%emt 0:08:09]} 12. dxc5 {[%emt 0:03:56]} Bxc5 {[%emt 0:01:12]} 13. Ne5 {[%emt 0:00:58]} Bxg2 {[%emt 0:18:14]} 14. Kxg2 {[%emt 0:00:09]} Ra7 {[%emt 0:16:57]} 15. f3 {[%emt 0:10:30]} Qc8 {[%emt 0:07:50]} 16. Nxd7 {[%emt 0:04:33]} Rxd7 {[%emt 0:00:44]} 17. Bg5 {[%emt 0:01:03]} Rfd8 {[%emt 0:05:45]} 18. Bxf6 {[%emt 0:11:52]} gxf6 {[%emt 0:00:13]} 19. Ne4 {[%emt 0:00:13]} Be7 {[%emt 0:04:39]} 20. Rac1 {[%emt 0:03:22]} Qb8 {[%emt 0:04:18]} 21. Rxd7 {[%emt 0:04:59]} Rxd7 {[%emt 0:00:11]} 22. Rc6 {[%emt 0:03:03]} f5 {[%emt 0:04:01]} 23. Qc3 {[%emt 0:03:44]} Qb7 {[%emt 0:01:34]} 24. Rc8+ {[%emt 0:02:56]} Rd8 {[%emt 0:00:21]} 25. Rc7 {[%emt 0:02:58]} Qb6 {[%emt 0:05:16]} 26. Rxe7 {[%emt 0:00:42]} fxe4 {[%emt 0:00:04]} 27. Qf6 {[%emt 0:07:06]} exf3+ {[%emt 0:00:07]} 28. exf3 {[%emt 0:00:15]} Rf8 {[%emt 0:01:56]} 29. Qg5+ {[%emt 0:01:13]} Kh8 {[%emt 0:00:07]} 30. Qe5+ {[%emt 0:00:09]} Kg8 {[%emt 0:01:13]} 31. Rc7 {[%emt 0:01:00]} Qa5 {[%emt 0:02:36]} 32. Qg5+ {[%emt 0:01:03]} Kh8 {[%emt 0:00:05]} 33. Qf6+ {[%emt 0:01:54]} Kg8 {[%emt 0:00:05]} 34. Rc5 {[%emt 0:00:10]} Re8 {[%emt 0:04:34]} 35. Rg5+ {[%emt 0:01:53]} Kf8 {[%emt 0:00:09]} 36. Rg7 {[%emt 0:04:22]} Qc7 {[%emt 0:00:06]} 37. Kh3 {[%emt 0:01:15]} Qe7 {[%emt 0:03:07]} 38. Qh6 {[%emt 0:00:19]} Rd8 {[%emt 0:00:45]} 39. Rxh7+ {[%emt 0:01:02]} Ke8 {[%emt 0:00:06]} 40. Rh8+ {[%emt 0:00:00]} Kd7 {[%emt 0:00:00]} 41. Qd2+ {[%emt 0:01:16]} Kc8 {[%emt 0:01:50]} 42. Rxd8+ {[%emt 0:00:34]} Qxd8 {[%emt 0:00:06]} 43. Qxd8+ {[%emt 0:00:07]} Kxd8 {[%emt 0:00:06]} 44. Kg4 {[%emt 0:00:06]} Ke7 {[%emt 0:00:39]} 45. h4 {[%emt 0:00:41]} Kf6 {[%emt 0:00:07]} 46. Kf4 {[%emt 0:00:06]} e5+ {[%emt 0:00:41]} 47. Ke4 {[%emt 0:00:07]} Ke6 {[%emt 0:00:04]} 48. g4 {[%emt 0:00:06]} Kf6 {[%emt 0:00:12]} 49. Kd5 {[%emt 0:00:26]} a5 {[%emt 0:00:15]} 50. a3 {[%emt 0:00:30]} a4 {[%emt 0:00:12]} 51. h5 {[%emt 0:00:08]} 1-0

[Event "FIDE WYCC Girls U14 2023"]
[Site "Montesilvano"]
[Date "2023.11.22"]
[Round "9.12"]
[White "Sneha Halder"]
[Black "Jankovic, Tamara"]
[Result "0-1"]
[ECO "E77"]
[WhiteElo "1807"]
[BlackElo "1711"]
[Annotator "NA RC"]
[PlyCount "111"]
[EventDate "2023.11.13"]
[EventType "swiss"]
[EventCountry "ITA"]
[SourceTitle "playchess.com"]
[Source "ChessBase"]
[SourceQuality "1"]
[TimeControl "40/5400+30:1800+30"]

1. c4 {[%emt 0:01:52]} g6 {[%emt 0:00:08]} 2. d4 {[%emt 0:00:07]} Bg7 {[%emt 0:00:06]} 3. e4 {[%emt 0:00:03]} d6 {[%emt 0:00:05]} 4. f4 {[%emt 0:00:13]} Nf6 {[%emt 0:00:50]} 5. Nc3 {[%emt 0:00:07]} O-O {[%emt 0:00:03]} 6. Nf3 {[%emt 0:00:32]} c5 {[%emt 0:01:11]} 7. d5 {[%emt 0:00:17]} e6 {[%emt 0:01:17]} 8. dxe6 {[%emt 0:02:26]} Bxe6 {[%emt 0:04:00]} 9. Be2 {[%emt 0:00:24]} Nc6 {[%emt 0:01:49]} 10. O-O {[%emt 0:00:16]} Re8 {[%emt 0:01:06]} 11. f5 {[%emt 0:18:18]} gxf5 {[%emt 0:13:09]} 12. Bg5 {[%emt 0:00:01]} h6 {[%emt 0:00:16]} 13. Bh4 {[%emt 0:00:10]} Qd7 {[%emt 0:02:28]} 14. exf5 {[%emt 0:00:17]} Bxf5 {[%emt 0:00:17]} 15. Bxf6 {[%emt 0:01:25]} Bxf6 {[%emt 0:00:27]} 16. Nd5 {[%emt 0:00:05]} Bxb2 {[%emt 0:21:30]} 17. Nh4 {[%emt 0:00:16]} Be6 {[%emt 0:08:25]} 18. Rb1 {[%emt 0:06:52]} Bg7 {[%emt 0:05:53]} 19. Bh5 {[%emt 0:05:29]} Bxd5 {[%emt 0:10:24]} 20. Qxd5 {[%emt 0:02:29]} Rf8 {[%emt 0:02:04]} 21. Nf5 {[%emt 0:05:36]} Rad8 {[%emt 0:10:29]} 22. Rb3 {[%emt 0:29:26]} Ne7 {[%emt 0:08:53]} 23. Nxh6+ {[%emt 0:11:04]} Bxh6 {[%emt 0:00:12]} 24. Bxf7+ {[%emt 0:00:03]} Rxf7 {[%emt 0:01:10]} 25. Qxf7+ {[%emt 0:00:08]} Kh8 {[%emt 0:00:16]} 26. Rf6 {[%emt 0:08:20]} Ng8 {[%emt 0:02:16]} 27. Rxb7 {[%emt 0:00:06]} Qxf7 {[%emt 0:00:27]} 28. Rfxf7 {[%emt 0:00:09]} Be3+ {[%emt 0:00:04]} 29. Kh1 {[%emt 0:01:43]} Nh6 {[%emt 0:00:07]} 30. Rh7+ {[%emt 0:00:04]} Kg8 {[%emt 0:00:06]} 31. Rbg7+ {[%emt 0:00:03]} Kf8 {[%emt 0:00:40]} 32. Rg3 {[%emt 0:00:46]} Nf5 {[%emt 0:02:27]} 33. Rf3 {[%emt 0:01:39]} Kg8 {[%emt 0:00:05]} 34. Rh5 {[%emt 0:03:27]} Ng7 {[%emt 0:00:27]} 35. Rd5 {[%emt 0:00:02]} Bd4 {[%emt 0:00:31]} 36. h4 {[%emt 0:00:01]} Be5 {[%emt 0:00:32]} 37. g4 {[%emt 0:00:52]} Rb8 {[%emt 0:01:31]} 38. Rb3 {[%emt 0:00:01]} Rf8 {[%emt 0:00:17]} 39. Kg2 {[%emt 0:01:27]} Rf4 {[%emt 0:00:18]} 40. Kh3 {[%emt 0:00:00]} Rxc4 {[%emt 0:00:00]} 41. Rd2 {[%emt 0:00:25]} Rc1 {[%emt 0:02:39]} 42. g5 {[%emt 0:00:46]} Rh1+ {[%emt 0:00:33]} 43. Kg4 {[%emt 0:00:03]} Rg1+ {[%emt 0:00:07]} 44. Kh3 {[%emt 0:00:55]} c4 {[%emt 0:00:35]} 45. Rf3 {[%emt 0:00:36]} Ne6 {[%emt 0:04:57]} 46. Rdf2 {[%emt 0:00:59]} c3 {[%emt 0:00:34]} 47. Rf1 {[%emt 0:04:28]} Rxf1 {[%emt 0:02:34]} 48. Rxf1 {[%emt 0:00:03]} Nf4+ {[%emt 0:00:17]} 49. Kg4 {[%emt 0:00:13]} Nd3 {[%emt 0:00:06]} 50. Rb1 {[%emt 0:00:39]} c2 {[%emt 0:00:23]} 51. Rb8+ {[%emt 0:00:05]} Kf7 {[%emt 0:02:32]} 52. Kf5 {[%emt 0:02:48]} c1=Q {[%emt 0:02:05]} 53. g6+ {[%emt 0:00:03]} Ke7 {[%emt 0:00:34]} 54. Rb7+ {[%emt 0:00:36]} Kd8 {[%emt 0:00:11]} 55. Ke4 Bd4 56. Kxd4 0-1